[Event "US Open 2021"]
[Site "Crowne Plaza Cherry Hill, United States"]
[Date "2021.07.31"]
[Round "1.1"]
[White "Bruzon Batista, Lazaro"]
[Black "Kaur, Aradh"]
[Result "1-0"]
[TimeControl "40/100;SD/30;+30"]
[WhiteElo "2725"]
[BlackElo "1690"]

1. e4 {[%clk 01:40:53]} {[%emt 00:00:20]} e5 {[%clk 01:40:58]} 2. Nf3 {[%clk
01:40:01]} {[%emt 00:01:09]} Nc6 {[%clk 01:41:15]} {[%emt 00:00:38]} 3. Bb5
{[%clk 01:40:29]} a6 {[%clk 01:41:27]} {[%emt 00:00:09]} 4. Ba4 {[%clk
01:40:55]} Nf6 {[%clk 01:41:46]} {[%emt 00:00:04]} 5. O-O {[%clk 01:39:44]}
{[%emt 00:01:58]} Be7 {[%clk 01:41:24]} {[%emt 00:01:02]} 6. Bxc6 {[%clk
01:39:21]} {[%emt 00:00:47]} bxc6 {[%clk 01:39:16]} {[%emt 00:02:13]} 7. Re1
{[%clk 01:34:24]} {[%emt 00:05:28]} d6 {[%clk 01:38:12]} {[%emt 00:01:34]} 8.
d4 {[%clk 01:34:51]} {[%emt 00:00:24]} exd4 {[%clk 01:36:18]} {[%emt 00:02:07]}
9. Nxd4 {[%clk 01:35:15]} {[%emt 00:00:20]} Bb7 {[%clk 01:35:36]} {[%emt
00:00:54]} 10. Nf5 {[%clk 01:32:28]} {[%emt 00:03:16]} O-O {[%clk 01:34:55]}
{[%emt 00:01:45]} 11. Bg5 {[%clk 01:32:51]} Re8 {[%clk 01:28:25]} {[%emt
00:06:33]} 12. Qf3 {[%clk 01:32:21]} {[%emt 00:01:05]} Bc8 {[%clk 01:19:18]}
{[%emt 00:09:36]} 13. Nxe7+ {[%clk 01:30:47]} {[%emt 00:02:04]} Qxe7 {[%clk
01:19:35]} {[%emt 00:00:14]} 14. Nc3 {[%clk 01:29:18]} {[%emt 00:02:25]} Qe5
{[%clk 01:16:50]} {[%emt 00:02:50]} 15. Bf4 {[%clk 01:29:15]} {[%emt 00:00:27]}
Qe7 {[%clk 01:11:11]} {[%emt 00:06:10]} 16. e5 {[%clk 01:27:52]} {[%emt
00:01:52]} Bb7 {[%clk 01:09:14]} {[%emt 00:02:27]} 17. Re3 {[%clk 01:21:57]}
{[%emt 00:06:32]} dxe5 {[%clk 01:00:28]} {[%emt 00:09:12]} 18. Bxe5 {[%clk
01:22:03]} {[%emt 00:00:19]} Rad8 {[%clk 00:54:48]} {[%emt 00:06:29]} 19. Rae1
{[%clk 01:19:29]} {[%emt 00:02:52]} Qd7 {[%clk 00:38:37]} {[%emt 00:17:07]} 20.
Bxf6 {[%clk 01:18:08]} {[%emt 00:01:22]} Rxe3 {[%clk 00:36:41]} {[%emt
00:02:21]} 21. fxe3 {[%clk 01:12:31]} {[%emt 00:06:09]} gxf6 {[%clk 00:35:54]}
{[%emt 00:01:48]} 22. Ne4 {[%clk 01:10:15]} {[%emt 00:03:09]} Qe7 {[%clk
00:32:24]} {[%emt 00:03:12]} 23. Nxf6+ {[%clk 01:10:26]} {[%emt 00:00:12]} Kh8
{[%clk 00:32:14]} {[%emt 00:00:47]} 24. Qf5 {[%clk 01:10:21]} {[%emt 00:00:31]}
Kg7 {[%clk 00:29:17]} {[%emt 00:03:30]} 25. Qg5+ {[%clk 01:10:40]} {[%emt
00:00:14]} Kh8 {[%clk 00:29:13]} {[%emt 00:00:26]} 26. Qh6 {[%clk 01:11:02]}
{[%emt 00:00:58]} 1-0

[Event "US Open 2021"]
[Site "Crowne Plaza Cherry Hill, United States"]
[Date "2021.07.31"]
[Round "1.2"]
[White "Yan, Henry"]
[Black "Gledura, Benjamin"]
[Result "0-1"]
[TimeControl "40/100;SD/30;+30"]
[WhiteElo "1873"]
[BlackElo "2721"]

1. e4 {[%clk 01:40:50]} {[%emt 00:00:22]} c5 {[%clk 01:40:46]} {[%emt
00:00:04]} 2. d4 {[%clk 01:41:13]} {[%emt 00:00:10]} cxd4 {[%clk 01:41:07]}
{[%emt 00:00:18]} 3. c3 {[%clk 01:41:34]} Nf6 {[%clk 01:40:20]} {[%emt
00:01:12]} 4. e5 {[%clk 01:41:28]} {[%emt 00:00:36]} Nd5 {[%clk 01:40:43]}
{[%emt 00:00:51]} 5. Bc4 {[%clk 01:40:23]} {[%emt 00:00:55]} Nb6 {[%clk
01:39:37]} {[%emt 00:01:52]} 6. Bb3 {[%clk 01:37:28]} {[%emt 00:03:06]} e6
{[%clk 01:39:18]} {[%emt 00:00:52]} 7. Nf3 {[%clk 01:37:12]} {[%emt 00:00:49]}
d6 {[%clk 01:34:49]} {[%emt 00:05:18]} 8. O-O {[%clk 01:33:02]} {[%emt
00:04:25]} dxe5 {[%clk 01:15:58]} {[%emt 00:19:19]} 9. Nxe5 {[%clk 01:31:36]}
{[%emt 00:02:08]} Be7 {[%clk 01:16:26]} 10. Qh5 {[%clk 01:29:21]} {[%emt
00:02:25]} O-O {[%clk 01:14:45]} {[%emt 00:02:11]} 11. Bc2 {[%clk 01:26:24]}
{[%emt 00:03:46]} f5 {[%clk 01:15:00]} {[%emt 00:00:03]} 12. Rd1 {[%clk
01:24:55]} {[%emt 00:01:52]} Qc7 {[%clk 01:14:00]} {[%emt 00:01:30]} 13. Bf4
{[%clk 01:19:56]} {[%emt 00:05:28]} Bd6 {[%clk 01:12:05]} {[%emt 00:02:27]} 14.
Re1 {[%clk 01:09:11]} {[%emt 00:11:20]} Nd5 {[%clk 01:10:27]} {[%emt 00:02:03]}
15. Bg3 {[%clk 00:52:28]} {[%emt 00:17:13]} Nd7 {[%clk 01:08:34]} {[%emt
00:02:24]} 16. f4 {[%clk 00:46:03]} {[%emt 00:07:04]} Nxf4 {[%clk 00:59:49]}
{[%emt 00:09:04]} 17. Bxf4 {[%clk 00:43:02]} {[%emt 00:03:31]} Nxe5 {[%clk
01:00:10]} {[%emt 00:00:16]} 18. Na3 {[%clk 00:40:21]} {[%emt 00:03:04]} dxc3
{[%clk 00:55:43]} {[%emt 00:04:56]} 19. Bxe5 {[%clk 00:35:30]} {[%emt
00:05:21]} Bxe5 {[%clk 00:56:02]} {[%emt 00:00:30]} 20. Kh1 {[%clk 00:27:06]}
{[%emt 00:08:50]} cxb2 {[%clk 00:56:13]} {[%emt 00:00:17]} 21. Rad1 {[%clk
00:27:09]} {[%emt 00:00:24]} Bf6 {[%clk 00:55:14]} {[%emt 00:01:21]} 22. Bb3
{[%clk 00:26:01]} {[%emt 00:01:37]} Kh8 {[%clk 00:54:22]} {[%emt 00:01:32]} 23.
Nb5 {[%clk 00:25:29]} {[%emt 00:00:51]} Qe7 {[%clk 00:54:27]} {[%emt 00:00:25]}
24. Rd3 {[%clk 00:22:07]} {[%emt 00:04:04]} Qb4 {[%clk 00:53:16]} {[%emt
00:01:30]} 0-1

[Event "US Open 2021"]
[Site "Crowne Plaza Cherry Hill, United States"]
[Date "2021.07.31"]
[Round "1.3"]
[White "Lenderman, Aleksandre"]
[Black "Bernui, Lucas"]
[Result "1-0"]
[TimeControl "40/100;SD/30;+30"]
[WhiteElo "2703"]
[BlackElo "1672"]

1. b3 {[%clk 01:40:49]} {[%emt 00:00:30]} d5 {[%clk 01:40:41]} {[%emt
00:00:04]} 2. Bb2 {[%clk 01:41:14]} {[%emt 00:00:07]} c5 {[%clk 01:40:46]}
{[%emt 00:01:10]} 3. e3 {[%clk 01:41:34]} Nc6 {[%clk 01:40:55]} 4. Nf3 {[%clk
01:40:48]} {[%emt 00:01:22]} Bg4 {[%clk 01:39:04]} {[%emt 00:01:55]} 5. Bb5
{[%clk 01:40:16]} {[%emt 00:01:02]} Rc8 {[%clk 01:38:17]} {[%emt 00:01:33]} 6.
h3 {[%clk 01:40:35]} {[%emt 00:00:08]} Bxf3 {[%clk 01:34:30]} {[%emt 00:04:05]}
7. Qxf3 {[%clk 01:41:03]} {[%emt 00:00:21]} a6 {[%clk 01:34:02]} {[%emt
00:00:41]} 8. Bxc6+ {[%clk 01:40:15]} {[%emt 00:01:15]} Rxc6 {[%clk 01:34:06]}
{[%emt 00:00:59]} 9. O-O {[%clk 01:40:32]} Nf6 {[%clk 01:33:11]} {[%emt
00:01:05]} 10. d3 {[%clk 01:38:33]} {[%emt 00:02:34]} g6 {[%clk 01:29:12]}
{[%emt 00:04:23]} 11. c4 {[%clk 01:37:49]} {[%emt 00:01:14]} dxc4 {[%clk
01:26:09]} {[%emt 00:03:34]} 12. dxc4 {[%clk 01:38:17]} {[%emt 00:00:11]} Bg7
{[%clk 01:25:23]} {[%emt 00:01:07]} 13. Rd1 {[%clk 01:38:32]} {[%emt 00:00:49]}
Qc8 {[%clk 01:17:58]} {[%emt 00:07:29]} 14. Nc3 {[%clk 01:38:33]} {[%emt
00:00:20]} Nd7 {[%clk 01:12:45]} {[%emt 00:05:46]} 15. Rd2 {[%clk 01:38:32]}
{[%emt 00:01:12]} Ne5 {[%clk 01:08:50]} {[%emt 00:03:41]} 16. Qg3 {[%clk
01:37:33]} {[%emt 00:01:28]} O-O {[%clk 00:58:24]} {[%emt 00:11:04]} 17. Rad1
{[%clk 01:37:59]} {[%emt 00:00:03]} f5 {[%clk 00:42:14]} {[%emt 00:16:50]} 18.
Nd5 {[%clk 01:38:11]} {[%emt 00:00:05]} Qe6 {[%clk 00:40:23]} {[%emt 00:03:06]}
19. Nf4 {[%clk 01:38:32]} Qf7 {[%clk 00:33:19]} {[%emt 00:07:03]} 20. Rd5
{[%clk 01:38:34]} {[%emt 00:00:26]} Nf3+ {[%clk 00:31:52]} {[%emt 00:02:24]} 21.
Qxf3 {[%clk 01:36:51]} {[%emt 00:02:06]} Bxb2 {[%clk 00:32:13]} 22. Nd3 {[%clk
01:36:26]} {[%emt 00:00:38]} Bg7 {[%clk 00:29:04]} {[%emt 00:03:40]} 23. Nxc5
{[%clk 01:36:09]} {[%emt 00:01:22]} Rc7 {[%clk 00:17:53]} {[%emt 00:11:06]} 24.
Nd7 {[%clk 01:31:50]} {[%emt 00:04:48]} Rfc8 {[%clk 00:15:46]} {[%emt
00:02:38]} 25. Nb6 {[%clk 01:31:56]} {[%emt 00:00:35]} Re8 {[%clk 00:15:44]}
{[%emt 00:00:34]} 26. Rd7 {[%clk 01:32:13]} Rxd7 {[%clk 00:13:35]} {[%emt
00:02:37]} 27. Rxd7 {[%clk 01:32:29]} {[%emt 00:00:14]} Qf6 {[%clk 00:13:13]}
{[%emt 00:01:14]} 28. Qxb7 {[%clk 01:30:35]} {[%emt 00:02:10]} Qa1+ {[%clk
00:12:54]} {[%emt 00:00:44]} 29. Kh2 {[%clk 01:31:03]} {[%emt 00:00:09]} Be5+
{[%clk 00:04:35]} {[%emt 00:09:20]} 30. f4 {[%clk 01:31:16]} Bf6 {[%clk
00:00:46]} {[%emt 00:04:08]} 31. Nd5 {[%clk 01:31:29]} {[%emt 00:00:20]} Kf7
{[%clk 00:01:00]} 32. Nc7 {[%clk 01:30:03]} {[%emt 00:01:58]} Rh8 {[%clk
00:00:35]} {[%emt 00:01:15]} 33. Qd5+ {[%clk 01:30:17]} Kg7 {[%clk 00:01:04]}
34. Ne6+ {[%clk 01:30:39]} {[%emt 00:00:07]} Kh6 {[%clk 00:01:29]} {[%emt
00:00:14]} 35. Qd2 {[%clk 01:27:06]} {[%emt 00:04:48]} Qf1 {[%clk 00:00:43]}
{[%emt 00:00:22]} 36. c5 {[%clk 01:24:16]} {[%emt 00:04:04]} Rg8 {[%clk
00:00:51]} 37. Rd8 {[%clk 01:21:17]} {[%emt 00:03:26]} Rxd8 {[%clk 00:00:43]}
{[%emt 00:00:39]} 38. Qxd8 {[%clk 01:21:41]} Qf2 {[%clk 00:00:53]} {[%emt
00:00:32]} 39. c6 {[%clk 01:21:03]} {[%emt 00:00:46]} Bh4 {[%clk 00:00:33]}
{[%emt 00:00:41]} 40. Qf8+ {[%clk 01:51:27]} {[%emt 00:00:13]} Kh5 {[%clk
00:31:00]} 41. Ng7+ {[%clk 01:51:53]} {[%emt 00:00:27]} Kh6 {[%clk 00:30:36]}
{[%emt 00:01:23]} 42. Nxf5+ {[%clk 01:52:20]} Kh5 {[%clk 00:30:56]} 43. Nxh4
{[%clk 01:52:42]} Qxh4 {[%clk 00:29:30]} {[%emt 00:01:19]} 1-0

[Event "US Open 2021"]
[Site "Crowne Plaza Cherry Hill, United States"]
[Date "2021.07.31"]
[Round "1.4"]
[White "Pineda-Bermudez, Mari"]
[Black "Burke, John Michael"]
[Result "0-1"]
[TimeControl "40/100;SD/30;+30"]
[WhiteElo "1667"]
[BlackElo "2640"]

1. d4 {[%clk 01:40:54]} {[%emt 00:00:33]} d5 {[%clk 01:40:55]} {[%emt
00:00:49]} 2. Nf3 {[%clk 01:41:12]} Nf6 {[%clk 01:41:21]} 3. g3 {[%clk
01:41:33]} g6 {[%clk 01:41:46]} 4. Bg2 {[%clk 01:41:56]} Bg7 {[%clk 01:42:13]}
5. O-O {[%clk 01:42:14]} O-O {[%clk 01:42:40]} {[%emt 00:00:07]} 6. b3 {[%clk
01:42:28]} c5 {[%clk 01:42:15]} {[%emt 00:01:29]} 7. Bb2 {[%clk 01:42:08]}
{[%emt 00:00:14]} Ne4 {[%clk 01:40:42]} {[%emt 00:02:15]} 8. c4 {[%clk
01:35:07]} {[%emt 00:07:26]} dxc4 {[%clk 01:38:11]} {[%emt 00:03:00]} 9. bxc4
{[%clk 01:31:17]} {[%emt 00:04:18]} Nc6 {[%clk 01:35:21]} {[%emt 00:03:12]} 10.
e3 {[%clk 01:24:39]} {[%emt 00:07:14]} Bg4 {[%clk 01:26:31]} {[%emt 00:10:05]}
11. Qc2 {[%clk 01:18:39]} {[%emt 00:05:39]} Bf5 {[%clk 01:23:52]} {[%emt
00:03:23]} 12. Nh4 {[%clk 01:17:52]} {[%emt 00:01:02]} Nxg3 {[%clk 01:23:01]}
{[%emt 00:01:25]} 13. Nxf5 {[%clk 01:16:10]} {[%emt 00:02:16]} Nxf5 {[%clk
01:23:27]} {[%emt 00:00:03]} 14. dxc5 {[%clk 01:10:20]} {[%emt 00:06:45]} Qa5
{[%clk 01:12:39]} {[%emt 00:11:20]} 15. Bxg7 {[%clk 01:06:50]} {[%emt
00:03:25]} Nxg7 {[%clk 01:13:04]} {[%emt 00:00:23]} 16. Nc3 {[%clk 00:59:24]}
{[%emt 00:07:39]} Qxc5 {[%clk 01:10:21]} {[%emt 00:03:13]} 17. Nd5 {[%clk
00:58:16]} {[%emt 00:02:03]} Ne8 {[%clk 01:06:07]} {[%emt 00:04:28]} 18. Rab1
{[%clk 00:53:15]} {[%emt 00:05:27]} Nd6 {[%clk 01:06:08]} {[%emt 00:00:24]} 19.
Rfd1 {[%clk 00:46:45]} {[%emt 00:06:59]} Rab8 {[%clk 01:04:12]} {[%emt
00:02:36]} 20. Qd3 {[%clk 00:30:32]} {[%emt 00:16:42]} Nxc4 {[%clk 01:01:29]}
{[%emt 00:03:04]} 21. Rdc1 {[%clk 00:27:23]} {[%emt 00:03:48]} b5 {[%clk
01:00:52]} {[%emt 00:00:59]} 22. Nc7 {[%clk 00:23:02]} {[%emt 00:04:50]} N6e5
{[%emt 00:07:32]} 0-1

[Event "US Open 2021"]
[Site "Crowne Plaza Cherry Hill, United States"]
[Date "2021.08.03"]
[Round "1.5"]
[White "Wei, James"]
[Black "Nyzhnyk, Illia"]
[Result "0-1"]
[TimeControl "40/100;SD/30;+30"]
[BlackTitle "GM"]
[WhiteElo "1833"]
[BlackElo "2778"]

1. e4 {[%clk 01:40:57]} c5 {[%clk 01:40:46]} 2. Nf3 {[%clk 01:41:15]} {[%emt
00:00:18]} g6 {[%clk 01:41:09]} 3. d4 {[%clk 01:41:30]} {[%emt 00:00:07]} cxd4
{[%clk 01:41:32]} {[%emt 00:00:21]} 4. Nxd4 {[%clk 01:41:52]} Nf6 {[%clk
01:41:49]} {[%emt 00:00:23]} 5. Nc3 {[%clk 01:42:06]} {[%emt 00:00:03]} Bg7
{[%clk 01:42:08]} {[%emt 00:00:07]} 6. Be3 {[%clk 01:42:08]} {[%emt 00:00:31]}
O-O {[%clk 01:42:29]} {[%emt 00:00:08]} 7. f3 {[%clk 01:39:56]} {[%emt
00:02:40]} Nc6 {[%clk 01:42:39]} {[%emt 00:00:25]} 8. Qd2 {[%clk 01:39:20]}
{[%emt 00:01:05]} d5 {[%clk 01:43:04]} {[%emt 00:00:03]} 9. exd5 {[%clk
01:36:10]} {[%emt 00:03:27]} Nxd5 {[%clk 01:43:33]} 10. Nxd5 {[%clk 01:36:18]}
{[%emt 00:00:55]} Qxd5 {[%clk 01:43:20]} {[%emt 00:00:44]} 11. Nxc6 {[%clk
01:33:53]} {[%emt 00:02:33]} Qxc6 {[%clk 01:43:30]} {[%emt 00:01:10]} 12. O-O-O
{[%clk 01:32:21]} {[%emt 00:01:10]} Bf5 {[%clk 01:43:28]} {[%emt 00:00:35]} 13.
Bd3 {[%clk 01:28:36]} {[%emt 00:04:44]} Rad8 {[%clk 01:42:28]} {[%emt
00:01:00]} 14. Qe2 {[%clk 01:27:11]} {[%emt 00:02:00]} Bxd3 {[%clk 01:42:06]}
{[%emt 00:01:06]} 15. Rxd3 {[%clk 01:25:40]} {[%emt 00:01:49]} Qb5 {[%clk
01:42:29]} {[%emt 00:00:20]} 16. b3 {[%clk 01:19:06]} {[%emt 00:06:59]} Qe5
{[%clk 01:42:53]} 17. c3 {[%clk 01:15:28]} {[%emt 00:04:14]} Qa5 {[%clk
01:43:10]} 18. Kb2 {[%clk 01:11:39]} {[%emt 00:04:18]} Rxd3 {[%clk 01:41:10]}
{[%emt 00:02:28]} 19. Qxd3 {[%clk 01:11:42]} {[%emt 00:00:41]} Rd8 {[%clk
01:41:38]} 20. Qc2 {[%clk 01:10:39]} {[%emt 00:01:22]} b5 {[%clk 01:41:59]}
{[%emt 00:00:12]} 21. a3 {[%clk 01:04:29]} {[%emt 00:06:40]} b4 {[%clk
01:42:22]} {[%emt 00:00:06]} 22. axb4 {[%clk 01:04:24]} {[%emt 00:00:45]} Qxb4
{[%clk 01:42:50]} 23. Ra1 {[%clk 00:59:23]} {[%emt 00:05:19]} a5 {[%clk
01:43:13]} {[%emt 00:00:33]} 24. Ra4 {[%clk 00:57:00]} {[%emt 00:02:39]} Qb5
{[%clk 01:43:41]} 25. Bd4 {[%clk 00:53:24]} {[%emt 00:03:58]} e5 {[%clk
01:44:07]} {[%emt 00:00:27]} 26. Be3 {[%clk 00:47:47]} {[%emt 00:05:43]} h6
{[%clk 01:44:26]} {[%emt 00:00:10]} 27. Bd2 {[%clk 00:45:09]} {[%emt 00:03:16]}
Qf1 {[%clk 01:44:21]} {[%emt 00:00:54]} 28. Bc1 {[%clk 00:40:30]} {[%emt
00:05:02]} Rd3 {[%clk 01:38:19]} {[%emt 00:06:52]} 29. Ra1 {[%clk 00:36:46]}
{[%emt 00:03:39]} e4 {[%clk 01:38:04]} {[%emt 00:00:43]} 30. Bf4 {[%clk
00:26:07]} {[%emt 00:11:06]} Bxc3+ {[%clk 01:38:23]} {[%emt 00:00:40]} 31. Qxc3
{[%clk 00:26:26]} {[%emt 00:00:06]} Qxa1+ {[%clk 01:38:49]} 32. Kxa1 {[%clk
00:26:47]} Rxc3 {[%clk 01:39:16]} 33. Kb2 {[%clk 00:27:06]} {[%emt 00:00:05]}
exf3 {[%clk 01:39:43]} {[%emt 00:00:24]} 0-1

[Event "US Open 2021"]
[Site "Crowne Plaza Cherry Hill, United States"]
[Date "2021.08.03"]
[Round "1.6"]
[White "Cordova Daza, Emilio"]
[Black "Koblentz, Michael"]
[Result "1-0"]
[TimeControl "40/100;SD/30;+30"]
[WhiteTitle "GM"]
[WhiteElo "2646"]
[BlackElo "1826"]

1. d4 {[%emt 00:26:32]} Nf6 {[%clk 01:14:28]} {[%emt 00:00:25]} 2. Bg5 {[%clk
01:39:24]} {[%emt 00:01:37]} Ne4 {[%clk 01:14:06]} {[%emt 00:01:04]} 3. Bf4
{[%clk 01:39:47]} c5 {[%clk 01:11:32]} {[%emt 00:03:00]} 4. f3 {[%clk
01:40:08]} {[%emt 00:00:14]} Qa5+ {[%clk 01:10:13]} {[%emt 00:02:01]} 5. c3
{[%clk 01:40:29]} Nf6 {[%clk 01:09:23]} {[%emt 00:01:25]} 6. d5 {[%clk
01:40:45]} {[%emt 00:00:04]} d6 {[%clk 01:02:23]} {[%emt 00:07:26]} 7. e4
{[%clk 01:40:54]} {[%emt 00:00:27]} g6 {[%clk 01:02:13]} {[%emt 00:00:38]} 8.
Nd2 {[%clk 01:40:09]} {[%emt 00:01:20]} Nbd7 {[%clk 01:00:30]} {[%emt
00:02:25]} 9. a4 {[%clk 01:39:43]} {[%emt 00:00:33]} Bg7 {[%clk 01:00:22]}
{[%emt 00:00:41]} 10. Nc4 {[%clk 01:39:02]} {[%emt 00:01:11]} Qc7 {[%clk
00:59:24]} {[%emt 00:01:36]} 11. Qd2 {[%clk 01:39:18]} {[%emt 00:00:06]} b6
{[%clk 00:55:48]} {[%emt 00:04:04]} 12. h4 {[%clk 01:38:43]} {[%emt 00:01:08]}
h5 {[%clk 00:55:02]} {[%emt 00:01:13]} 13. Nh3 {[%clk 01:38:29]} {[%emt
00:00:44]} Rb8 {[%clk 00:51:00]} {[%emt 00:04:32]} 14. Ng5 {[%clk 01:33:34]}
{[%emt 00:05:26]} a6 {[%clk 00:47:28]} {[%emt 00:04:02]} 15. e5 {[%clk
01:26:29]} {[%emt 00:08:01]} Nxe5 {[%clk 00:45:24]} {[%emt 00:02:18]} 16. Bxe5
{[%clk 01:26:50]} dxe5 {[%clk 00:45:44]} {[%emt 00:00:17]} 17. d6 {[%clk
01:27:15]} exd6 {[%clk 00:43:07]} {[%emt 00:03:15]} 18. Nxd6+ {[%clk 01:23:50]}
{[%emt 00:03:44]} Ke7 {[%clk 00:43:12]} {[%emt 00:01:03]} 19. Ndxf7 {[%clk
01:13:03]} {[%emt 00:10:38]} Rf8 {[%clk 00:40:17]} {[%emt 00:03:24]} 20. Bc4
{[%clk 01:12:47]} {[%emt 00:01:07]} Ne8 {[%clk 00:33:25]} {[%emt 00:07:23]} 21.
O-O {[%clk 01:11:23]} {[%emt 00:01:45]} Qd7 {[%clk 00:21:31]} {[%emt 00:12:14]}
22. Qe2 {[%clk 01:11:01]} {[%emt 00:00:50]} Qf5 {[%clk 00:20:02]} {[%emt
00:02:41]} 23. f4 {[%clk 01:10:18]} {[%emt 00:00:33]} Qg4 {[%clk 00:10:37]}
{[%emt 00:09:57]} 24. Rf3 {[%clk 01:08:46]} {[%emt 00:02:34]} Bb7 {[%clk
00:09:45]} {[%emt 00:00:48]} 25. Nxe5 {[%clk 01:08:34]} {[%emt 00:00:44]} Bxf3
{[%clk 00:05:53]} {[%emt 00:04:24]} 26. Nexf3+ {[%clk 01:08:27]} {[%emt
00:01:30]} Kd7 {[%clk 00:04:40]} {[%emt 00:00:51]} 1-0

[Event "US Open 2021"]
[Site "Crowne Plaza Cherry Hill, United States"]
[Date "2021.08.03"]
[Round "1.7"]
[White "Gupta, Anand"]
[Black "Sorokin, Aleksey"]
[Result "0-1"]
[TimeControl "40/100;SD/30;+30"]
[BlackTitle "GM"]
[WhiteElo "1816"]
[BlackElo "2628"]

1. d4 {[%clk 01:40:58]} Nf6 {[%clk 01:40:47]} 2. c4 {[%clk 01:41:20]} g6 {[%clk
01:41:09]} {[%emt 00:00:19]} 3. Nc3 {[%clk 01:41:44]} {[%emt 00:00:39]} d5
{[%clk 01:41:32]} 4. cxd5 {[%clk 01:42:06]} Nxd5 {[%clk 01:41:53]} 5. e4 {[%clk
01:42:30]} Nxc3 {[%clk 01:42:10]} 6. bxc3 {[%clk 01:42:52]} Bg7 {[%clk
01:42:33]} {[%emt 00:00:11]} 7. Bc4 {[%clk 01:43:16]} {[%emt 00:00:04]} c5
{[%clk 01:42:31]} {[%emt 00:00:26]} 8. Ne2 {[%clk 01:43:35]} {[%emt 00:00:45]}
Nc6 {[%clk 01:42:50]} 9. Be3 {[%clk 01:43:45]} {[%emt 00:00:04]} O-O {[%clk
01:43:07]} {[%emt 00:00:23]} 10. O-O {[%clk 01:44:09]} b6 {[%clk 01:43:04]}
{[%emt 00:00:22]} 11. Bd5 {[%clk 01:43:28]} {[%emt 00:01:11]} Qc7 {[%clk
01:39:08]} {[%emt 00:04:29]} 12. Bf4 {[%clk 01:40:08]} {[%emt 00:03:58]} Qd7
{[%clk 01:38:43]} {[%emt 00:00:43]} 13. Bxc6 {[%clk 01:38:08]} {[%emt
00:02:28]} Qxc6 {[%clk 01:39:02]} {[%emt 00:00:38]} 14. d5 {[%clk 01:37:58]}
{[%emt 00:00:28]} Qb5 {[%clk 01:39:03]} {[%emt 00:00:42]} 15. Re1 {[%clk
01:33:55]} {[%emt 00:04:07]} Qc4 {[%clk 01:38:44]} {[%emt 00:00:57]} 16. Qc2
{[%clk 01:32:39]} {[%emt 00:01:37]} e6 {[%clk 01:38:46]} {[%emt 00:00:32]} 17.
d6 {[%clk 01:29:24]} {[%emt 00:03:40]} e5 {[%clk 01:38:02]} {[%emt 00:01:15]}
18. Be3 {[%clk 01:27:55]} {[%emt 00:02:37]} Bb7 {[%clk 01:37:27]} {[%emt
00:00:26]} 19. f3 {[%clk 01:26:56]} {[%emt 00:01:30]} Rfd8 {[%clk 01:37:08]}
{[%emt 00:00:49]} 20. Rad1 {[%clk 01:26:28]} {[%emt 00:01:42]} Qe6 {[%clk
01:36:46]} {[%emt 00:00:08]} 21. c4 {[%clk 01:23:05]} {[%emt 00:03:56]} Ba6
{[%clk 01:35:22]} {[%emt 00:02:08]} 22. Rd5 {[%clk 01:22:35]} {[%emt 00:00:54]}
Bb7 {[%clk 01:34:40]} {[%emt 00:01:00]} 23. Nc3 {[%clk 01:20:47]} {[%emt
00:02:40]} Bxd5 {[%clk 01:34:36]} {[%emt 00:00:17]} 24. Nxd5 {[%clk 01:21:06]}
{[%emt 00:00:09]} Qxd6 {[%clk 01:34:18]} {[%emt 00:01:33]} 25. Rd1 {[%clk
01:20:47]} {[%emt 00:00:12]} Qf8 {[%clk 01:34:45]} 26. g4 {[%clk 01:08:21]}
{[%emt 00:12:49]} Kh8 {[%clk 01:34:55]} {[%emt 00:00:22]} 27. Qg2 {[%clk
01:04:54]} {[%emt 00:03:53]} f5 {[%clk 01:34:50]} {[%emt 00:00:46]} 28. Kh1
{[%clk 01:02:48]} {[%emt 00:02:28]} Rd7 {[%clk 01:34:46]} {[%emt 00:00:32]} 29.
g5 {[%clk 00:58:11]} {[%emt 00:05:13]} fxe4 {[%clk 01:34:42]} {[%emt 00:00:28]}
30. fxe4 {[%clk 00:58:09]} {[%emt 00:00:34]} Rf7 {[%clk 01:35:09]} 31. Kg1
{[%clk 00:55:17]} {[%emt 00:03:45]} Qc8 {[%clk 01:35:13]} {[%emt 00:00:24]} 32.
Rf1 {[%clk 00:47:33]} {[%emt 00:07:56]} Rxf1+ {[%clk 01:35:30]} {[%emt
00:00:41]} 33. Kxf1 {[%clk 00:47:53]} {[%emt 00:00:04]} Qa6 {[%clk 01:35:34]}
{[%emt 00:00:08]} 34. Qe2 {[%clk 00:46:34]} {[%emt 00:01:57]} Rf8+ {[%clk
01:35:57]} 35. Kg1 {[%clk 00:46:38]} {[%emt 00:00:20]} Qc8 {[%clk 01:36:06]}
{[%emt 00:00:36]} 36. Qg2 {[%clk 00:46:46]} {[%emt 00:00:19]} Qd7 {[%clk
01:36:23]} {[%emt 00:00:39]} 37. h4 {[%clk 00:44:46]} {[%emt 00:02:11]} b5
{[%clk 01:36:35]} {[%emt 00:00:03]} 38. h5 {[%clk 00:21:54]} {[%emt 00:23:19]}
gxh5 {[%clk 01:36:58]} {[%emt 00:00:36]} 39. cxb5 {[%clk 00:21:56]} {[%emt
00:00:04]} Qxb5 {[%clk 01:37:04]} {[%emt 00:00:24]} 40. Ne7 {[%clk 00:51:29]}
{[%emt 00:01:04]} c4 {[%clk 02:06:32]} {[%emt 00:01:05]} 41. g6 {[%clk
00:51:04]} {[%emt 00:00:52]} Qd7 {[%clk 02:06:59]} 42. Nf5 {[%clk 00:50:21]}
{[%emt 00:01:04]} Qd1+ {[%clk 02:06:52]} {[%emt 00:01:01]} 43. Kh2 {[%clk
00:50:11]} {[%emt 00:00:15]} Qg4 {[%clk 02:07:19]} {[%emt 00:00:26]} 44. Qc2
{[%clk 00:47:50]} {[%emt 00:02:28]} hxg6 {[%clk 02:07:30]} {[%emt 00:00:21]} 45.
Nxg7 {[%clk 00:48:02]} {[%emt 00:00:28]} Rf3 {[%clk 02:07:52]} 0-1